Cogmind - Beta 11.1 @@@ ROGUE MODE // 2022.05.03 @ 19:08:58 Player: slowdive Result: Destroyed by D-53 Grenadier with Mini Grenade Launcher Performance ------------- Evolutions (0) 0 Regions Visited (2) 400 Robots Destroyed (24) 120 Value Destroyed (408) 408 Prototype IDs (5) 100 Alien Tech Used (0) 0 Bonus (-27) -27 TOTAL SCORE: 1001 Bonus ------- Follower Combat Kills 35 Friendly Fire -62 Cogmind --------- Core Integrity 0/250 Matter 250/300 Energy 228/250 System Corruption 0% Temperature Cool (36) Movement Rolling (135) Ox3 Location -10/Mines Parts ------- > --- POWER (1) -------- Ion Engine > --- PROPULSION (2) --- Armored Wheel > --- UTILITY (2) ------ High-capacity Storage Unit Targeting Computer > --- WEAPON (2) ------- Improved Medium Laser > --- INVENTORY (20) --- Ion Engine Light Nuclear Core Improved Heat Sink Large Storage Unit Structural Scanner Signal Interpreter Weapon Shielding Light Armor Plating Decoy Drone Bay EM Pulse Gun Improved Medium Laser Assault Rifle Grenade Launcher Mining Laser Peak State ------------ > --- POWER ------------ Ion Engine > --- PROPULSION ------- Compact Wheel Armored Wheel > --- UTILITY ---------- High-capacity Storage Unit Targeting Computer > --- WEAPON ----------- EM Pulse Gun Improved Medium Laser > --- INVENTORY -------- Ion Engine Light Nuclear Core Improved Heat Sink Large Storage Unit Structural Scanner Signal Interpreter Weapon Shielding Light Armor Plating Decoy Drone Bay EM Pulse Gun Improved Medium Laser Assault Rifle Grenade Launcher Mining Laser [Rating: 13] Favorites ----------- Power Ion Engine Engine Ion Engine Propulsion Light Treads Treads Light Treads Leg Aluminum Leg Wheel Compact Wheel Utility Large Storage Unit Device Improved Heat Sink Storage Large Storage Unit Processor Targeting Computer Protection Hardened Light Armor Plating Weapon EM Pulse Gun Energy Gun EM Pulse Gun Ballistic Gun Light Assault Rifle Launcher Grenade Launcher Build | -11 -10 -10 ------- Run | Scr Mat Min Slots Evolved . | . . . Power . | . . . Propulsion . | . . . Utility . | . . . Weapon . | . . . Parts Attached 33 | . 23 10 Power 2 | . 2 . Engine 2 | . 2 . Core . | . . . Reactor . | . . . Propulsion 8 | . 7 1 Treads 3 | . 3 . Leg 1 | . 1 . Wheel 4 | . 3 1 Hover . | . . . Flight . | . . . Utility 6 | . 4 2 Device 1 | . 1 . Storage 3 | . 1 2 Processor 1 | . 1 . Hackware . | . . . Protection 1 | . 1 . Artifact . | . . . Weapon 17 | . 10 7 Energy Gun 12 | . 8 4 Energy Cannon . | . . . Ballistic Gun 2 | . 2 . Ballistic Cannon . | . . . Launcher 3 | . . 3 Special Weapon . | . . . Impact Weapon . | . . . Slashing Weapon . | . . . Piercing Weapon . | . . . Special Melee Weapon . | . . . Unidentified Prototypes . | . . . Parts Lost 5 | . 1 4 Power . | . . . Propulsion 2 | . . 2 Utility . | . . . Weapon 3 | . 1 2 Highest Loss Streak 4 | . 1 4 To Critical Strikes . | . . . Average Slot Usage (%) 97 | . 96 100 Engine 14 | . 14 14 Treads 16 | . 17 13 Leg 1 | . 2 . Wheel 9 | . 8 14 Storage 14 | . 14 14 Processor 8 | . 6 14 Protection 3 | . 5 . Energy Gun 22 | . 20 27 Ballistic Gun 3 | . 5 . Naked Turns . | . . . Heaviest Build 50 | 11 33 50 Greatest Support 40 | 20 40 16 Greatest Overweight (x) 3 | . 2 3 Average Overweight (x) . | . . 1 Largest Inventory Capacity 20 | . 15 20 Average Capacity 14 | . 14 15 Most Carried 17 | . 15 17 Average Carried 12 | . 11 14 Final Capacity 20 | 8 15 20 Final Carried 15 | 6 14 15 Class Distribution -------------------- 100% | Mutant Dominant Class ---------------- Mutant | -10/Materials Mutant | -10/Mines Resources | -11 -10 -10 ----------- Run | Scr Mat Min Matter Collected 676 | 200 403 73 Remotely . | . . . Salvage Created 590 | . 491 99 Parts 42 | . 34 8 Haulers Intercepted 2 | . 2 . Recyclers Shooed . | . . . Parts Field Recycled . | . . . Retrieved Matter . | . . . Parts Self-Destructed . | . . . Prevented . | . . . Kills | -11 -10 -10 ------- Run | Scr Mat Min Combat Hostiles Destroyed 24 | . 11 13 Guns 13 | . 11 2 AOE 11 | . . 11 Classes Destroyed 7 | . 6 1 Worker 1 | . 1 . Tunneler 1 | . 1 . Hauler 2 | . 2 . Watcher 2 | . 2 . Swarmer 12 | . 6 6 Grunt 6 | . 5 1 Assembled 6 | . . 6 Best Kill Streak 6 | . 3 6 Combat Bots Only 6 | . 3 6 Max Kills in Single Turn 5 | . 2 5 Gunslinging 1 | . 1 . Exploded 5 | . . 5 Melee . | . . . Uniques/NPCs Destroyed . | . . . Combat | -11 -10 -10 -------- Run | Scr Mat Min Damage Taken 1204 | . 626 578 Core 267 | . 60 207 Absorbed by Shields . | . . . Core Remaining (%) 100 | 100 . . Volleys Fired 71 | . 59 12 Largest 2 | . 2 2 Hottest 105 | . 105 96 Shots Fired 128 | . 111 17 Gun 123 | . 111 12 Cannon . | . . . Launcher 5 | . . 5 Special . | . . . Kinetic 33 | . 33 . Thermal 42 | . 40 2 Explosive 5 | . . 5 Electromagnetic 48 | . 38 10 Robot Hit Streak 10 | . 8 10 Robot Miss Streak 12 | . 12 3 Penetration Max . | . . . Secondary Targets 3 | . 3 . Max Gunslinging Chain 1 | . 1 . Shots Hit Robots 68 | . 58 10 Core Hits 52 | . 23 29 Critical Kills . | . . . Critical Parts Destroyed . | . . . Critical Strikes 4 | . 2 2 Burn 3 | . 2 1 Corrupt 1 | . . 1 Melee Attacks . | . . . Impact . | . . . Slashing . | . . . Piercing . | . . . Sneak Attacks . | . . . Combat Hostiles . | . . . Follow-up Attacks . | . . . Damage Inflicted 1680 | . 833 847 Guns 961 | . 829 132 Cannons . | . . . Explosions 705 | . . 705 Melee . | . . . Ramming 14 | . 4 10 Kinetic 140 | . 140 . Thermal 431 | . 310 121 Explosive 617 | . . 617 Electromagnetic 478 | . 379 99 Impact . | . . . Slashing . | . . . Piercing . | . . . Highest Corruption . | . . . Average Corruption . | . . . Corruption Purged . | . . . Corruption Blocked . | . . . Overload Shots . | . . . Overflow Damage 10 | . . 10 Projectiles . | . . . Explosions 10 | . . 10 Melee . | . . . Knockbacks . | . . . Impact . | . . . Kinetic . | . . . Secondary . | . . . Self-Inflicted Damage 80 | . 2 78 Shots 2 | . . 2 Rammed 4 | . 2 2 Targets Rammed 4 | . 2 2 Kicked . | . . . Crushed . | . . . Highest Temperature 548 | . 548 36 Average Temperature 211 | . 224 13 Received Heat Transfer 207 | . 183 24 Effects 22 | . 22 . Shutdowns 7 | . 7 . Energy Bleed 2 | . 2 . Interference 6 | . 6 . Matter Decay 3 | . 3 . Short Circuit 2 | . 2 . Damage (minor) 2 | . 2 . Siege Activations . | . . . Robots Corrupted . | . . . Combat Hostiles . | . . . Parts Fried 2 | . 1 1 Impact Corruptions . | . . . Robots Melted . | . . . Combat Hostiles . | . . . Parts Melted 1 | . . 1 Heat Transferred 1224 | . 926 298 Parts Sabotaged . | . . . Parts Stolen . | . . . Parts Stripped . | . . . Power Chain Reactions 1 | . . 1 Missiles Intercepted . | . . . Alert | -11 -10 -10 ------- Run | Scr Mat Min Peak Influence 307 | . 226 307 Initial 18 | . . 18 Average 123 | . 98 193 Maximum Alert Level 1 | . 1 1 Low Security (%) 83 | . 95 50 Level 1 16 | . 4 49 Level 2 . | . . . Level 3 . | . . . Level 4 . | . . . Level 5 . | . . . High Security . | . . . Max Security . | . . . Squads Dispatched 1 | . 1 . Investigation 1 | . 1 . Extermination . | . . . Reinforcement . | . . . Assault . | . . . Garrison . | . . . Intercept . | . . . Searches Triggered . | . . . Construction Impeded . | . . . Haulers Reinforced . | . . . Active Scanning Responses . | . . . Cargo Convoy Interrupts . | . . . Stealth | -11 -10 -10 --------- Run | Scr Mat Min Distress Signals 3 | . 3 . Communications Jammed . | . . . Distress Signals . | . . . Times Spotted 49 | . 25 24 Peak Tracking Total 14 | . 4 14 Tactical Retreats 1 | . 1 . Traps | -11 -10 -10 ------- Run | Scr Mat Min Traps Triggered 1 | . 1 . Indirectly . | . . . Trap Hack Attempts . | . . . Triggered . | . . . Disarmed . | . . . Reprogrammed . | . . . Reused . | . . . Traps Extracted . | . . . Installed . | . . . Triggered . | . . . Machines | -11 -10 -10 ---------- Run | Scr Mat Min Machines Disabled 4 | . 1 3 Max in Single Turn 2 | . 1 2 Machines Sabotaged . | . . . Garrisons Compromised . | . . . Overloaded Fab Kills . | . . . Hacking | -11 -10 -10 --------- Run | Scr Mat Min Machines Accessed 11 | . 10 1 Terminals 8 | . 8 . Fabricators . | . . . Repair Stations . | . . . Recycling Units 2 | . 2 . Scanalyzers . | . . . Garrison Access . | . . . Total Hacks 25 | . 24 1 Successful 17 | . 16 1 Failed 7 | . 7 . Catastrophic 1 | . 1 . Database Lockouts 1 | . 1 . Manual 15 | . 15 . Terminals 19 | . 19 . Fabricators . | . . . Repair Stations . | . . . Recycling Units 5 | . 5 . Scanalyzers . | . . . Garrison Access . | . . . Terminal Hacks 8 | . 7 1 Robot Analysis 1 | . 1 . Prototype ID Bank 2 | . 2 . Open Door 1 | . . 1 Hauler Manifests 1 | . 1 . Registered Components 1 | . 1 . Zone Layout 2 | . 2 . Fabricator Hacks . | . . . Repair Station Hacks . | . . . Recycling Unit Hacks 4 | . 4 . Report Inventory 2 | . 2 . Retrieve Components 2 | . 2 . Scanalyzer . | . . . Garrison Access Hacks . | . . . Unauthorized Hacks 4 | . 4 . Terminals 4 | . 4 . Track 1 | . 1 . Operators 3 | . 3 . Fabricators . | . . . Repair Stations . | . . . Recycling Units . | . . . Scanalyzers . | . . . Garrison Access . | . . . Data Cores Recovered . | . . . Used . | . . . Hacking Detections 8 | . 8 . Full Trace Events 1 | . 1 . Feedback Events . | . . . Feedback Blocked . | . . . Robot Schematics Acquired . | . . . Robots Built . | . . . Authchips . | . . . Time . | . . . Total Robot Build Rating . | . . . Part Schematics Acquired . | . . . Parts Built . | . . . Authchips . | . . . Time . | . . . Total Part Build Rating . | . . . Parts Repaired . | . . . Time . | . . . Parts Recycled . | . . . Recycled Matter . | . . . Retrieved Matter . | . . . Retrieved Components 6 | . 6 . Parts Scanalyzed . | . . . Part Schematics Acquired . | . . . Parts Damaged . | . . . Bothacking | -11 -10 -10 ------------ Run | Scr Mat Min Used RIF Installer . | . . . Robots Hacked . | . . . Non-combat . | . . . Combat . | . . . Robot Hacks Applied . | . . . Relay Couplers Released . | . . . Fabnet Peak Effective % . | . . . Robots Rewired . | . . . Allies Hacked . | . . . Hacks Repelled . | . . . Allies | -11 -10 -10 -------- Run | Scr Mat Min Total Allies 3 | . . 3 Largest Group 3 | . . 3 Highest-Rated Group 40 | . . 40 Highest-Rated Ally 16 | . . 16 Total Orders . | . . . Ally Attacks 15 | . . 15 Total Damage 201 | . . 201 Kills 2 | . . 2 Allies Corrupted . | . . . Allies Melted . | . . . Intel | -11 -10 -10 ------- Run | Scr Mat Min Robot Analysis Total 1 | . 1 . Derelict Logs Recovered 2 | . . 2 Drone Launches . | . . . Drone Recoveries . | . . . Exploration | -11 -10 -10 ------------- Run | Scr Mat Min Turns Passed 2201 | . 1624 577 Spaces Moved 1441 | 1 1014 426 Core . | . . . Treads 217 | . 217 . Legs 57 | 1 56 . Wheels 1167 | . 741 426 Hover . | . . . Flight . | . . . Fastest Speed 115 | 120 115 115 Average Speed 122 | 120 125 117 Slowest Speed 190 | 120 190 145 Overloaded Moves . | . . . Propulsion Burnouts . | . . . Robots Hopped . | . . . Cave-ins Triggered . | . . . Exploration Rate (%) 58 | 2 99 74 Regions Visited 2 Branch Regions 1 Pre-discovered Areas 1 | . . 1 Known Exits Taken . | . . . Unknown Exits Taken 2 | 1 1 . Scrap Searched 1 | . . 1 Spaces Dug . | . . . Terrain Destroyed 58 | . . 58 Melee . | . . . Projectile . | . . . AOE 58 | . . 58 Terrain Rammed . | . . . Walls Destroyed . | . . . Machines Disabled . | . . . Actions | -11 -10 -10 --------- Run | Scr Mat Min Total 1758 | . 1272 486 Wait 143 | . 123 20 Move 1439 | . 1013 426 Hop . | . . . Pick Up 38 | . 25 13 Fast Attach 5 | . 4 1 Attach 9 | . 7 2 Detach 5 | . 5 . Swap 19 | . 12 7 Drop 25 | . 22 3 Fire 71 | . 59 12 Melee . | . . . Ram 4 | . 2 2 Kick . | . . . Crush . | . . . Escape Stasis . | . . . Rewire . | . . . Trap . | . . . Miscellaneous . | . . . Route ------- -11/Scrapyard -10/Materials (discovered 4 exits: [*Mat x3] / *Min) -10/Mines (discovered 2 exits: [*Mat] / [*Exi]) History --------- Turn | Location | Event 1 | -11/Scrapyard | Discovered new exit (range 0) 1 | -11/Scrapyard | Entered Materials 312 | -10/Materials | Build established: Mutant 468 | -10/Materials | Discovered new exit (range 10) 667 | -10/Materials | Central database locked down 810 | -10/Materials | Discovered new exit (range 15) 1041 | -10/Materials | Discovered new exit (range 8) 1197 | -10/Materials | Discovered new exit (range 12) 1625 | -10/Materials | Entered Mines 1669 | -10/Mines | Found the Drone Emporium 1675 | -10/Mines | Found Prototype Device 1760 | -10/Mines | Deemed a non-threat by the Exiles lab entrance 1761 | -10/Mines | Discovered new exit (range 5) 1821 | -10/Mines | Learned location of Storage (-7) 1840 | -10/Mines | Assisted by bots powering up and referring to "LRC-V3" 1853 | -10/Mines | Discovered new exit (range 11) 2155 | -10/Mines | Assembled infested the area 2195 | -10/Mines | Core integrity fell below 50% 2201 | -10/Mines | Core integrity fell below 20% 2202 | -10/Mines | Destroyed by D-53 Grenadier with Mini Grenade Launcher Last Messages --------------- 02188_ Destroyed Asb. Hover Unit. 02188_ as-68031 destroyed. 02188_ as-25933 destroyed. 02188_ as-29407 destroyed. 02189_ as-41331 destroyed. 02189_ as-82059 destroyed. 02189_ as-30531 destroyed. 02189_ as-05498 destroyed. 02190_ as-09781 destroyed. 02191_ as-98069 destroyed. 02191_ as-56660 destroyed. 02194_ Trooper 1b destroyed. 02194_ EM Pulse Gun destroyed. 02195_ Destroyed Shock Absorption System. 02196_ Trooper 1a destroyed. 02196_ Lgt. Treads destroyed. 02200_ Com. Wheel destroyed. 02200_ EM Pulse Gun destroyed. 02201_ The unstable cave ceiling collapses. 02202_ D-53 Grenadier suffers critical hit (Burn). Map ----- +----------------------------------------------------+ | ??????# ###?????????## #??#####???? | | ??????# #????????????## #??????????? | | ??????# #?????????????# #??????????? | | ??????#! #?????????????# #??????????? | | ??????# #?????????????# ???????????? | | ??????#/%#?????????????# ???????????? | | ??????# #????????????? ???????????? | | ??????# #????????????? ???????????? | | ??????# ##???????????? ???????????? | | ??????# #???????????? ???????????? | | ??????## #??????????????????????????? | | ???????# #??????????????????????????? | | ???????# #??????????????????????????? | | ???????# #??????????????????????????? | | ???????# #??????????????????????????? | | ???????# ##?????????????????????????? | | ???????# ##???????????? ???????????? | | ???????# ##????????? ???????????? | | ???????# #???????? ????????????? | | ???????# ######### ?????????????? | | ???????# ### ?#?????????????? | | ??????## # # # #?????????????? | | ??????# ###???????????? | | ??????# = #???????????? | | ??????## % [%* #???????????? | | ???????## @ = #????????????? | | ????????# < #???????????## | | ????????# #??????????##" | | ????????## # d #??????????#" | | ???????? ###?? d##??????????#" | | ???????##########??????% ??????????#" | | ????????????????????????? #????? ?#" | | ???????????????????????????????? ###" | | ???????????????????????????????? ?## | | ???????????????????????????????# #?? | | ???????????????????????????????# ##? | | ??????????????????????????????? ## | | ???????????????????????????????? # | | ???????????????????????????????? ? | | ???????????????????????????????? ? | | ???????????????????????????????? ?? | | ???????????????????????????????? #? | | ???????????????????????????????? ?? | | ????????????????????????#???????# ??? | | ????????????????????????# ??????# #??? | | ????????????????????????# ####### #### | | ??????????????????????### # | | ?????????????????????## #### | | ?????????????????????# * ####??? | | ?????????????????????## % ##?????? | +----------------------------------------------------+ Best States ------------- Heat Dissipation 39 Energy Generation 10 Energy Capacity 250 Matter Stores 300 Matter Capacity 300 Sight Range 16 Terrain Scan Density 10 Armor Coverage 150 Evasion (%) 55 Targeting Accuracy 5 Recoil Reduction 2 Item Schematics ----------------- None Robot Schematics ------------------ None Fabricated ------------ Nothing Alien Tech Used ----------------- None Achievements -------------- None Challenges ------------ None Game ------ Seed LobotomyImprinterBeam Manual? 0 Play Time 00:42:28 Cumulative 77.4 hours Start 2022.05.03 @ 13:22:31 End 2022.05.03 @ 19:08:58 Sessions 1 Manual Loads 0 Difficulty Rogue Special Mode None Game No. 84 Rogue 84 Adventurer 0 Explorer 0 Win Type - Total 0 Types 0/0/0/0/0/0/0/0/0 Lore% 24 Gallery% 33 Achievement% 27 Wizard Run 0 Options --------- ASCII 0 Keyboard 0 Movement Numpad Keybinds 0 Fullscreen 2 Font 18/Smallcaps Map View 76x50 Tactical HUD 1 Map Filters NONE Filters NONE Steam 1 RUN: 61d174a7-bb94-425e-8b48-cb44f8e162ac